bitfinex/quotes_BTCUSD_20250529
["timestamp","ask_amount","ask_price","bid_price","bid_amount"]
[1748532309614,7.19034616,107480.0,107470.0,0.01180387]
[1748532309831,6.89558616,107480.0,107470.0,0.01180387]
[1748532310029,7.19034616,107480.0,107470.0,0.01180387]
[1748532310682,7.18014616,107480.0,107470.0,0.01180387]
[1748532311122,7.27265738,107480.0,107470.0,0.01180387]
[1748532311338,6.97789738,107480.0,107470.0,0.01180387]
[1748532311545,7.16504616,107480.0,107470.0,0.01180387]
[1748532312607,6.87028616,107480.0,107470.0,0.01180387]
[1748532312826,7.16504616,107480.0,107470.0,0.01180387]
[1748532313479,6.87028616,107480.0,107470.0,0.02840387]
[1748532313704,7.16504616,107480.0,107470.0,0.02840387]
[1748532313911,2.11504616,107480.0,107470.0,0.04480387]
[1748532314127,2.11504616,107480.0,107470.0,0.02840387]
[1748532315205,1.82028616,107480.0,107470.0,0.12140387]
[1748532315425,1.82028616,107480.0,107470.0,0.13780387]
[1748532315875,1.82028616,107480.0,107470.0,0.22885782]
[1748532317043,1.82028616,107480.0,107470.0,0.12140387]
[1748532317305,6.93649751,107480.0,107470.0,0.10480387]
[1748532317527,0.53540318,107470.0,107460.0,0.113]
[1748532317770,1.46006409,107470.0,107460.0,0.113]
[1748532318006,1.46898001,107470.0,107460.0,0.113]
[1748532318262,1.46898001,107470.0,107460.0,0.1292]
[1748532318784,1.56149123,107470.0,107460.0,0.113]
[1748532319043,1.47147246,107470.0,107460.0,0.1342]
[1748532320626,1.47147246,107470.0,107460.0,0.0413]
[1748532320858,1.47147246,107470.0,107450.0,0.10155498]
[1748532320859,0.53542137,107460.0,107450.0,0.10155498]
[1748532321072,1.1742782,107460.0,107450.0,0.10155498]
[1748532321285,1.1742782,107460.0,107450.0,0.11715498]
[1748532322367,1.18913448,107460.0,107450.0,0.11715498]
[1748532322620,1.19313448,107460.0,107450.0,0.11715498]
[1748532322801,1.19613448,107460.0,107450.0,0.11815498]
[1748532323987,1.19613448,107460.0,107450.0,0.13455498]
[1748532324644,1.19613448,107460.0,107450.0,0.13171369]
[1748532326147,1.49089122,107460.0,107450.0,0.22276764]
[1748532327441,0.56619031,107460.0,107450.0,0.22276764]
[1748532327889,1.19613122,107460.0,107450.0,0.22276764]
[1748532328329,1.20543674,107460.0,107450.0,0.22276764]
[1748532329016,1.20543674,107460.0,107450.0,0.23730849]
[1748532329888,1.20172741,107460.0,107450.0,0.23730849]
[1748532330320,1.20173173,107460.0,107450.0,0.23730849]
[1748532330772,1.20173173,107460.0,107450.0,0.53202849]
[1748532333109,1.19242621,107460.0,107450.0,0.53202849]
[1748532333971,1.19242621,107460.0,107450.0,0.82612849]
[1748532338856,1.17236228,107460.0,107450.0,0.82612849]
[1748532339107,1.19242731,107460.0,107450.0,0.82612849]
[1748532339550,1.19242731,107460.0,107450.0,0.53140849]
[1748532339775,1.20728359,107460.0,107450.0,0.53140849]
[1748532340014,1.19242731,107460.0,107450.0,0.53140849]
[1748532341405,1.19242664,107460.0,107450.0,0.53140849]
[1748532343513,1.19242664,107460.0,107450.0,0.43840849]
[1748532343724,1.20728292,107460.0,107450.0,0.51686764]
[1748532343960,1.19613605,107460.0,107450.0,0.51686764]
[1748532344202,1.19613605,107460.0,107450.0,0.51690764]
[1748532345888,1.19613605,107460.0,107450.0,0.22280764]
[1748532347127,1.20728431,107460.0,107450.0,0.22280764]
[1748532347356,1.20728541,107460.0,107450.0,0.22280764]
[1748532348007,1.20728541,107460.0,107450.0,0.51744764]
[1748532350583,1.20728541,107460.0,107450.0,0.53198849]
[1748532350787,1.19242913,107460.0,107450.0,0.53198849]
[1748532351423,1.20728541,107460.0,107450.0,0.53198849]
[1748532351630,1.20728712,107460.0,107450.0,0.53198849]
[1748532351837,1.20728712,107460.0,107450.0,0.82608849]
[1748532352035,0.57734621,107460.0,107450.0,0.82608849]
[1748532352244,1.20728712,107460.0,107450.0,0.82608849]
[1748532353116,1.19243084,107460.0,107450.0,0.82608849]
[1748532353566,1.19243084,107460.0,107450.0,0.43844849]
[1748532353715,1.19243084,107460.0,107450.0,0.82596849]
[1748532354296,1.20728712,107460.0,107450.0,0.82596849]
[1748532355786,1.21676121,107460.0,107450.0,0.82596849]
[1748532355998,1.21677645,107460.0,107450.0,0.82596849]
[1748532356414,1.20561878,107460.0,107450.0,0.82596849]
[1748532360273,0.57568303,107460.0,107450.0,0.82596849]
[1748532360740,1.20562394,107460.0,107450.0,0.82596849]
[1748532360945,0.57568303,107460.0,107450.0,0.82596849]
[1748532361168,0.56620894,107460.0,107450.0,0.82596849]
[1748532361438,1.19614985,107460.0,107450.0,0.82596849]
[1748532362747,1.19614954,107460.0,107450.0,0.82596849]
[1748532366098,1.2053359,107460.0,107450.0,0.82596849]
[1748532367133,1.20533556,107460.0,107450.0,0.82596849]
[1748532369823,1.21649851,107460.0,107450.0,0.82596849]
[1748532370037,1.20731215,107460.0,107450.0,0.82596849]
[1748532370682,0.57737124,107460.0,107450.0,0.82596849]
[1748532370885,1.19245587,107460.0,107450.0,0.82596849]
[1748532371094,1.19245587,107460.0,107450.0,0.82588849]
[1748532371306,1.1924542,107460.0,107450.0,0.82588849]
[1748532371736,1.1894542,107460.0,107450.0,0.82488849]
[1748532371944,1.1864542,107460.0,107450.0,0.82688849]
[1748532372401,1.1874542,107460.0,107450.0,0.82688849]
[1748532375328,1.1874542,107460.0,107450.0,0.53278849]
[1748532375767,1.1874542,107460.0,107450.0,0.53266849]
[1748532375986,1.20231048,107460.0,107450.0,0.53266849]
[1748532376197,1.21172682,107460.0,107450.0,0.53266849]
[1748532379775,1.1916349,107460.0,107450.0,0.53266849]
[1748532379961,1.2117259,107460.0,107450.0,0.53266849]
[1748532380806,1.2117259,107460.0,107450.0,0.14534849]
[1748532381027,1.20056423,107460.0,107450.0,0.48612764]
[1748532381863,1.20056423,107460.0,107450.0,0.19164764]
[1748532382071,0.57062332,107460.0,107450.0,0.48608764]
[1748532382297,1.20056423,107460.0,107450.0,0.50128764]
[1748532382964,0.57062332,107460.0,107450.0,0.20684764]
[1748532383177,1.20056423,107460.0,107450.0,0.19164764]
[1748532384036,1.20056425,107460.0,107450.0,0.19164764]
[1748532384504,1.20056425,107460.0,107450.0,0.48608764]
[1748532384721,1.20056425,107460.0,107450.0,0.50198764]
[1748532385395,0.57062334,107460.0,107450.0,0.48608764]
[1748532385616,0.57062334,107460.0,107450.0,0.53322849]
[1748532385837,1.21172449,107460.0,107450.0,0.53322849]
[1748532387555,1.19686821,107460.0,107450.0,0.53322849]
[1748532387764,1.18745187,107460.0,107450.0,0.53322849]
[1748532391189,1.19661725,107460.0,107450.0,0.53322849]
[1748532393195,1.21147353,107460.0,107450.0,0.82732849]
[1748532393536,1.19661725,107460.0,107450.0,0.82732849]
[1748532393740,1.21147353,107460.0,107450.0,0.82732849]
[1748532394175,0.58153262,107460.0,107450.0,0.82732849]
[1748532394407,0.01092935,107460.0,107450.0,1.37722138]
[1748532394630,0.00049245,107470.0,107460.0,0.61857293]
[1748532394854,0.00049245,107470.0,107460.0,0.73385091]
[1748532395067,0.00049245,107470.0,107460.0,1.36379182]
[1748532395979,0.00249245,107470.0,107460.0,1.36379182]
[1748532396429,0.00249245,107470.0,107460.0,1.36375184]
[1748532396869,0.00349245,107470.0,107460.0,1.33916779]
[1748532397318,0.00249245,107470.0,107460.0,1.33116779]
[1748532398136,0.00349245,107470.0,107460.0,1.33916779]
[1748532399131,0.00349245,107470.0,107460.0,1.63326779]
[1748532399589,0.03720772,107500.0,107490.0,0.0163]
[1748532399800,0.03720772,107500.0,107490.0,0.92732407]
[1748532399991,0.22325423,107500.0,107490.0,0.92732407]
[1748532400194,0.21395269,107500.0,107490.0,0.92732407]
[1748532400827,0.21495269,107500.0,107490.0,0.93432407]
[1748532400988,0.21595269,107500.0,107490.0,0.93932407]
[1748532401794,0.02990618,107500.0,107490.0,0.93932407]
[1748532402000,0.21595269,107500.0,107490.0,0.93932407]
[1748532402536,0.02990618,107500.0,107490.0,0.93932407]
[1748532402702,0.02990609,107500.0,107490.0,0.93932407]
[1748532402908,0.02990609,107500.0,107490.0,0.94849221]
[1748532403313,0.2159526,107500.0,107490.0,0.94849221]
[1748532403521,0.2159526,107500.0,107490.0,0.96704757]
[1748532403715,0.22525492,107500.0,107490.0,0.96704757]
[1748532404161,0.02990609,107500.0,107490.0,0.96704757]
[1748532404366,0.2159526,107500.0,107490.0,0.95787943]
[1748532404730,0.2159526,107500.0,107490.0,0.66347943]
[1748532404942,0.2159526,107500.0,107490.0,0.95779943]
[1748532405538,0.2066508,107500.0,107490.0,0.95779943]
[1748532407154,0.2066508,107500.0,107490.0,0.16859943]
[1748532407426,0.83659171,107500.0,107490.0,0.95755943]
[1748532408804,0.2066508,107500.0,107490.0,0.95755943]
[1748532409283,0.02060429,107500.0,107490.0,0.95755943]
[1748532409488,0.2066508,107500.0,107490.0,0.95755943]
[1748532410508,0.19734874,107500.0,107490.0,0.95755943]
[1748532412456,0.19734874,107500.0,107490.0,0.95751943]
[1748532413714,0.19734874,107500.0,107490.0,1.25161943]
[1748532414701,0.19734874,107500.0,107490.0,0.46269943]
[1748532414939,0.19734874,107500.0,107490.0,0.48996322]
[1748532414940,1.19788965,107500.0,107490.0,0.48996322]
[1748532415121,0.56794874,107500.0,107490.0,0.48996322]
[1748532415323,0.53734874,107500.0,107490.0,0.50526322]
[1748532415528,0.53734874,107500.0,107490.0,0.51980407]
[1748532416560,1.16728965,107500.0,107490.0,0.50450407]
[1748532418543,1.18368965,107500.0,107490.0,0.50450407]
[1748532418752,1.18368965,107500.0,107490.0,0.41174407]
[1748532418947,1.18368965,107500.0,107490.0,0.79874407]
[1748532419277,1.16728965,107500.0,107490.0,0.79874407]
[1748532420119,1.16728965,107500.0,107490.0,0.50450407]
[1748532420333,1.18368965,107500.0,107490.0,0.79870407]
[1748532420943,1.16728965,107500.0,107490.0,0.79870407]
[1748532423684,1.17838409,107500.0,107490.0,0.79870407]
[1748532426208,1.19388409,107500.0,107490.0,0.41174407]
[1748532426438,1.20928409,107500.0,107490.0,0.50450407]
[1748532426702,1.20928409,107500.0,107490.0,0.19586322]
[1748532426703,1.21304593,107500.0,107490.0,0.19586322]
[1748532426916,1.21304593,107500.0,107490.0,0.10310322]
[1748532427132,1.49238965,107500.0,107490.0,0.10310322]
[1748532429103,1.19818965,107500.0,107490.0,0.10310322]
[1748532429333,1.50719888,107500.0,107490.0,0.10310322]
[1748532430207,0.88839384,107500.0,107490.0,0.10310322]
[1748532430425,1.51833475,107500.0,107490.0,0.10310322]
[1748532431366,1.22417475,107500.0,107490.0,0.10310322]
[1748532431575,1.51833475,107500.0,107490.0,0.10310322]
[1748532432414,1.22417475,107500.0,107490.0,0.10310322]
[1748532432627,1.51833475,107500.0,107490.0,0.10310322]
[1748532434162,1.50293475,107500.0,107490.0,0.10310322]
[1748532434637,1.20877475,107500.0,107490.0,0.10310322]
[1748532434892,1.50293475,107500.0,107490.0,0.10310322]
[1748532435413,1.51803475,107500.0,107490.0,0.19586322]
[1748532435702,1.52846849,107500.0,107490.0,0.19586322]
[1748532436251,1.50689888,107500.0,107490.0,0.19586322]
[1748532437517,1.50293499,107500.0,107490.0,0.19586322]
[1748532437792,1.48743499,107500.0,107490.0,0.19586322]
[1748532438006,1.19327499,107500.0,107490.0,0.19586322]
[1748532438455,1.20967499,107500.0,107490.0,0.19586322]
[1748532440897,1.19327499,107500.0,107490.0,0.19586322]
[1748532441158,1.18213888,107500.0,107490.0,0.19586322]
[1748532441391,1.19327832,107500.0,107490.0,0.19586322]
[1748532443163,1.18213888,107500.0,107490.0,0.19586322]
[1748532443397,1.19853888,107500.0,107490.0,0.19586322]
[1748532444323,1.21403888,107500.0,107490.0,0.10310322]
[1748532444561,1.21403888,107500.0,107470.0,0.09268]
[1748532444562,0.57578863,107480.0,107470.0,0.09268]
[1748532444776,2.12979045,107480.0,107470.0,0.18373395]
[1748532444994,2.12979045,107480.0,107470.0,0.18388123]
[1748532446225,2.14464145,107480.0,107470.0,0.18388123]
[1748532448043,2.15164145,107480.0,107470.0,0.18388123]
[1748532448483,2.13679045,107480.0,107470.0,0.18388123]
[1748532448697,2.14605057,107480.0,107470.0,0.18388123]
[1748532449114,2.14605057,107480.0,107470.0,0.00014728]
[1748532452309,2.16088119,107480.0,107470.0,0.00014728]
[1748532454783,0.24690077,107480.0,107470.0,0.21213344]
[1748532455014,0.01630336,107480.0,107470.0,0.59901344]
[1748532455224,0.01630336,107480.0,107470.0,0.89311344]
[1748532455426,0.01630327,107480.0,107470.0,0.89311344]
[1748532455635,0.03491059,107480.0,107470.0,0.89311344]
[1748532455829,0.03721464,107480.0,107470.0,0.89311344]
[1748532456039,0.22329577,107480.0,107470.0,0.89311344]
[1748532456276,0.02891059,107480.0,107470.0,0.89511344]
[1748532456482,0.03821456,107480.0,107470.0,0.89511344]
[1748532456856,0.03821464,107480.0,107470.0,0.89511344]
[1748532457057,0.22429577,107480.0,107470.0,0.82062208]
[1748532457478,0.03821464,107480.0,107470.0,0.82062208]
[1748532459163,0.02891059,107480.0,107470.0,0.82062208]
[1748532459368,0.03821447,107480.0,107470.0,0.82062208]
[1748532459570,0.22429638,107480.0,107470.0,0.82062208]
[1748532462926,0.21499285,107480.0,107470.0,0.82062208]
[1748532463137,0.20568906,107480.0,107470.0,0.82062208]
[1748532463571,0.82632609,107480.0,107470.0,0.52646208]
[1748532463786,0.82632609,107480.0,107470.0,0.82054208]
[1748532464850,0.82632609,107480.0,107470.0,0.52646208]
[1748532465743,0.82632609,107480.0,107470.0,0.82050208]
[1748532466461,1.16632609,107480.0,107470.0,0.48002123]
[1748532466915,1.16632609,107480.0,107470.0,0.49456208]
[1748532467129,1.16632609,107480.0,107470.0,0.20046208]
[1748532467777,1.16632609,107480.0,107470.0,0.23186208]
[1748532471066,1.16632609,107480.0,107470.0,0.21666208]
[1748532471350,1.16632609,107480.0,107470.0,0.10774208]
[1748532471595,1.18242609,107480.0,107470.0,0.09320123]
[1748532471816,1.18242609,107480.0,107470.0,0.18580123]
[1748532473496,1.16632609,107480.0,107470.0,0.18580123]
[1748532473924,1.16632609,107480.0,107470.0,0.20034208]
[1748532474127,0.53638518,107480.0,107470.0,0.23064208]
[1748532474553,1.16632609,107480.0,107470.0,0.23064208]
[1748532480965,0.54568897,107480.0,107470.0,0.23064208]
[1748532481221,0.0196068,107480.0,107470.0,0.52474208]
[1748532481526,0.0382143,107480.0,107470.0,0.52474208]
[1748532481995,0.001,107480.0,107470.0,0.52474208]
[1748532482501,0.001,107480.0,107470.0,1.34078143]
[1748532482732,0.001,107480.0,107470.0,1.35008617]
[1748532482960,0.001,107480.0,107470.0,0.72934746]
[1748532483453,0.001,107480.0,107470.0,0.73865229]
[1748532484302,0.001,107480.0,107470.0,0.53394428]
[1748532484557,0.001,107480.0,107470.0,0.72934746]
[1748532484783,0.00930275,107490.0,107480.0,0.04704085]
[1748532484994,0.00930275,107490.0,107480.0,0.4320548]
[1748532485203,0.01860542,107490.0,107480.0,0.4320548]
[1748532485842,0.02790791,107490.0,107480.0,0.4320548]
[1748532486698,0.03682791,107490.0,107480.0,0.4330548]
[1748532487116,0.03682791,107490.0,107480.0,0.45127837]
[1748532487552,0.02782791,107490.0,107480.0,0.45027837]
[1748532487769,0.53455861,107500.0,107490.0,0.0323]
[1748532487984,0.53455861,107500.0,107490.0,0.61791395]
[1748532489616,0.54255861,107500.0,107490.0,0.61891395]
[1748532489848,0.53325664,107500.0,107490.0,0.61891395]
[1748532490586,0.52395441,107500.0,107490.0,0.61891395]
[1748532491815,0.52395441,107500.0,107490.0,0.52631395]
[1748532492054,0.52395441,107500.0,107490.0,0.91279395]
[1748532492551,0.53095441,107500.0,107490.0,0.91279395]
[1748532493707,0.53095441,107500.0,107490.0,1.20689395]
[1748532495149,1.16089532,107500.0,107490.0,1.20689395]
[1748532497298,0.53095441,107500.0,107490.0,1.20689395]
[1748532500413,0.53095441,107500.0,107490.0,0.82041395]
[1748532500623,0.53095441,107500.0,107490.0,1.20673395]
[1748532504295,1.16089532,107500.0,107490.0,1.20673395]
[1748532505419,0.53095441,107500.0,107490.0,1.20673395]
[1748532506061,0.015,107500.0,107490.0,1.85121571]
[1748532506276,0.02430154,107500.0,107490.0,1.2212748]
[1748532506499,0.03360325,107500.0,107490.0,1.2212748]
[1748532507012,0.02560325,107500.0,107490.0,1.2202748]
[1748532507233,0.02760325,107500.0,107490.0,1.2212748]
[1748532507463,0.03690505,107500.0,107490.0,1.2212748]
[1748532508747,0.01860325,107500.0,107490.0,1.2202748]
[1748532508957,0.01960325,107500.0,107490.0,1.2252748]
[1748532509164,0.02060325,107500.0,107490.0,1.2292748]
[1748532510007,0.02990505,107500.0,107490.0,1.2292748]
[1748532510650,0.002,107500.0,107490.0,1.41533861]
[1748532510855,0.002,107500.0,107490.0,1.85921571]
[1748532511069,0.002,107500.0,107490.0,2.04527952]
[1748532511287,0.002,107500.0,107490.0,2.05458253]
[1748532511702,0.002,107500.0,107490.0,2.06388537]
[1748532512786,0.002,107500.0,107490.0,2.07318812]
[1748532513036,0.002,107500.0,107490.0,2.0824907]
[1748532513477,0.002,107500.0,107490.0,2.4324907]
[1748532513690,0.002,107500.0,107490.0,2.4824907]
[1748532513938,0.002,107500.0,107490.0,2.51505071]
[1748532514158,0.09493199,107550.0,107540.0,0.0315]
[1748532514353,0.09493199,107550.0,107540.0,0.92741917]
[1748532514354,0.0092973,107550.0,107540.0,0.92741917]
[1748532514612,0.21395899,107560.0,107550.0,0.0313]
[1748532514613,0.29762106,107560.0,107550.0,0.0313]
[1748532514833,0.29762106,107560.0,107550.0,0.1368948]
[1748532514834,0.28832462,107560.0,107550.0,0.1368948]
[1748532515273,0.22313039,107560.0,107550.0,0.1368948]
[1748532515478,0.22313039,107560.0,107550.0,0.15519907]
[1748532515703,0.21383369,107560.0,107550.0,0.15519907]
[1748532516116,0.21383369,107560.0,107550.0,0.15719907]
[1748532516330,0.21383369,107560.0,107550.0,0.15819907]
[1748532516807,0.20458617,107560.0,107550.0,0.15819907]
[1748532519469,0.20458617,107560.0,107550.0,0.2010748]
[1748532519470,1.18992708,107560.0,107550.0,0.2010748]
[1748532519698,1.83576799,107560.0,107550.0,0.4946748]
[1748532519921,1.83576799,107560.0,107550.0,0.09405395]
[1748532520150,1.83576799,107560.0,107550.0,0.18653395]
[1748532521247,1.83576799,107560.0,107550.0,0.18553395]
[1748532522110,1.83576799,107560.0,107550.0,0.18353395]
[1748532522318,1.84576799,107560.0,107550.0,0.18553395]
[1748532522531,1.84576799,107560.0,107550.0,0.09205395]
[1748532522746,1.84576799,107560.0,107550.0,0.09348]
[1748532522954,1.85376799,107560.0,107550.0,0.09448]
[1748532524257,1.85376799,107560.0,107550.0,0.002]
[1748532524696,0.59388617,107560.0,107550.0,0.09305395]
[1748532524909,1.22382708,107560.0,107550.0,0.09305395]
[1748532525349,1.20792708,107560.0,107550.0,0.09305395]
[1748532527098,1.22402708,107560.0,107550.0,0.09305395]
[1748532528464,1.20792708,107560.0,107550.0,0.09305395]
[1748532532835,1.19252708,107560.0,107550.0,0.4166348]
[1748532533264,1.19252708,107560.0,107550.0,0.4332348]
[1748532534568,1.19252708,107560.0,107550.0,0.4166348]
[1748532534776,1.19252708,107560.0,107550.0,0.4010348]
[1748532535202,1.19252708,107560.0,107550.0,0.6951348]
[1748532536142,1.19252708,107560.0,107550.0,0.8176148]
[1748532536356,0.56258617,107560.0,107550.0,0.8176148]
[1748532537232,0.22258617,107560.0,107550.0,0.8176148]
[1748532538513,0.03664259,107560.0,107550.0,0.8176148]
[1748532538751,0.0552366,107560.0,107550.0,0.8176148]
[1748532538970,0.23188279,107560.0,107550.0,0.8176148]
[1748532539184,0.222586,107560.0,107550.0,0.8176148]
[1748532539401,0.85252691,107560.0,107550.0,0.8176148]
[1748532539614,1.18452691,107560.0,107550.0,0.4930148]
[1748532539819,1.18452691,107560.0,107550.0,0.7863748]
[1748532540045,1.19992691,107560.0,107550.0,0.77483395]
[1748532540258,1.18992691,107560.0,107550.0,0.7883748]
[1748532540691,0.559986,107560.0,107550.0,0.7893748]
[1748532540896,1.18992691,107560.0,107550.0,0.7893748]
[1748532541106,1.18992691,107560.0,107550.0,0.4952748]
[1748532541314,1.18992691,107560.0,107550.0,0.1095948]
[1748532541524,1.2174489,107560.0,107550.0,0.4952748]
[1748532541741,1.2010489,107560.0,107550.0,0.4952748]
[1748532542890,1.20974745,107560.0,107550.0,0.1095948]
[1748532543125,1.22614744,107560.0,107550.0,0.4952748]
[1748532543356,1.22614757,107560.0,107550.0,0.4952748]
[1748532543587,1.2174489,107560.0,107550.0,0.4952748]
[1748532543890,1.22614794,107560.0,107550.0,0.4952748]
[1748532544104,1.22616218,107560.0,107550.0,0.4952748]
[1748532544547,1.20976218,107560.0,107550.0,0.4952748]
[1748532545005,1.20976257,107560.0,107550.0,0.4952748]
[1748532545221,1.19436257,107560.0,107550.0,0.4952748]
[1748532546362,1.19436257,107560.0,107550.0,0.5105748]
[1748532546801,1.19436257,107560.0,107550.0,0.4952748]
[1748532547023,1.19436389,107560.0,107550.0,0.4952748]
[1748532547252,1.19436472,107560.0,107550.0,0.4952748]
[1748532548120,1.19436472,107560.0,107550.0,0.1095948]
[1748532548363,1.22539534,107560.0,107550.0,0.4952348]
[1748532548602,1.21669375,107560.0,107550.0,0.4952348]
[1748532548845,1.22539711,107560.0,107550.0,0.4952348]
[1748532549064,0.5792562,107560.0,107550.0,0.4952348]
[1748532549292,1.20919711,107560.0,107550.0,0.4952348]
[1748532550006,1.22499711,107560.0,107550.0,0.4952348]
[1748532550521,1.22499863,107560.0,107550.0,0.4952348]
[1748532550787,1.22499863,107560.0,107550.0,0.1095948]
[1748532550997,1.22499863,107560.0,107550.0,0.4951948]
[1748532551216,1.21629375,107560.0,107550.0,0.4951948]
[1748532551508,1.20919905,107560.0,107550.0,0.4951948]
[1748532551946,1.20919905,107560.0,107550.0,0.1095948]
[1748532552178,1.22479956,107560.0,107550.0,0.4951948]
[1748532552385,1.22479959,107560.0,107550.0,0.4951948]
[1748532552611,1.18935753,107560.0,107550.0,0.4951948]
[1748532552844,1.20920758,107560.0,107550.0,0.4951948]
[1748532553071,1.20920746,107560.0,107550.0,0.5114948]
[1748532553284,1.20920817,107560.0,107550.0,0.5267948]
[1748532553924,1.20920817,107560.0,107550.0,0.1095948]
[1748532554142,1.22520817,107560.0,107550.0,0.4951548]
[1748532554352,1.22520872,107560.0,107550.0,0.4951548]
[1748532554566,1.22520872,107560.0,107550.0,0.1095948]
[1748532554772,1.22520872,107560.0,107550.0,0.4951548]
[1748532555231,1.22520897,107560.0,107550.0,0.4951548]
[1748532555697,1.22520897,107560.0,107550.0,0.1095948]
[1748532555926,1.22520897,107560.0,107550.0,0.4951548]
[1748532556144,1.22520929,107560.0,107550.0,0.4951548]
[1748532556588,1.20920924,107560.0,107550.0,0.4951548]
[1748532557033,1.20921137,107560.0,107550.0,0.5112548]
[1748532557828,1.20921172,107560.0,107550.0,0.5112548]
[1748532558036,1.20050379,107560.0,107550.0,0.5112548]
[1748532558242,1.20921169,107560.0,107550.0,0.5112548]
[1748532558878,1.20921169,107560.0,107550.0,0.5271548]
[1748532559143,0.57927078,107560.0,107550.0,0.5271548]
[1748532559356,0.56444016,107560.0,107550.0,0.5271548]
[1748532559778,0.56444011,107560.0,107550.0,0.5271548]
[1748532560001,0.56444009,107560.0,107550.0,0.5271548]
[1748532560224,0.56444011,107560.0,107550.0,0.5271548]
[1748532560921,1.19438102,107560.0,107550.0,0.5271548]
[1748532561358,1.19438136,107560.0,107550.0,0.1415948]
[1748532561812,1.19438136,107560.0,107550.0,0.5269948]
[1748532562254,1.18567351,107560.0,107550.0,0.5269948]
[1748532562696,1.18567351,107560.0,107550.0,0.1415948]
[1748532562923,1.18567351,107560.0,107550.0,0.5269948]
[1748532563393,1.18567351,107560.0,107550.0,0.1415948]
[1748532563606,1.18567351,107560.0,107550.0,0.2337948]
[1748532563844,1.18567351,107560.0,107550.0,0.5269548]
[1748532564047,1.20050413,107560.0,107550.0,0.5269548]
[1748532564707,1.20050413,107560.0,107550.0,0.4356948]
[1748532564923,1.20050413,107560.0,107550.0,0.7890548]
[1748532565172,1.84999844,107560.0,107550.0,0.2981]
[1748532565388,1.84999844,107560.0,107530.0,0.0922]
[1748532565389,0.21977443,107540.0,107530.0,0.0922]
[1748532565606,0.8608609,107540.0,107530.0,0.18325395]
[1748532566083,0.8456609,107540.0,107530.0,0.1977948]
[1748532566301,0.8456609,107540.0,107530.0,0.18325395]
[1748532566525,0.8609609,107540.0,107530.0,0.09305395]
[1748532566751,0.8456609,107540.0,107530.0,0.1997948]
[1748532567812,0.8456609,107540.0,107530.0,0.2007948]
[1748532568881,0.8456609,107540.0,107530.0,0.4939548]
[1748532569097,0.8456609,107540.0,107530.0,0.47941395]
[1748532569098,0.8621609,107540.0,107530.0,0.47941395]
[1748532569328,0.8621609,107540.0,107530.0,0.18625395]
[1748532569556,0.20457443,107540.0,107530.0,0.2336948]
[1748532569783,0.55387329,107540.0,107530.0,0.2336948]
[1748532569989,0.54457486,107540.0,107530.0,0.2336948]
[1748532573755,1.17451577,107540.0,107530.0,0.5268148]
[1748532573971,1.17451577,107540.0,107530.0,0.1250948]
[1748532574192,1.17451577,107540.0,107530.0,0.5104148]
[1748532574408,1.17451577,107540.0,107530.0,0.2007948]
[1748532575511,1.18564807,107540.0,107530.0,0.2007948]
[1748532576378,1.18961577,107540.0,107530.0,0.1085948]
[1748532576593,1.18961577,107540.0,107530.0,0.18625395]
[1748532577239,1.21634712,107540.0,107530.0,0.18625395]
[1748532577470,1.18961577,107540.0,107530.0,0.18625395]
[1748532577695,1.200746,107540.0,107530.0,0.18625395]
[1748532578577,1.20074511,107540.0,107530.0,0.18625395]
[1748532579217,1.18564511,107540.0,107530.0,0.18625395]
[1748532579432,0.5557042,107540.0,107530.0,0.2164948]
[1748532579634,0.54457486,107540.0,107530.0,0.2330948]
[1748532581171,1.17451577,107540.0,107530.0,0.2330948]
[1748532582656,1.17451577,107540.0,107530.0,0.5095348]
[1748532583104,1.18564427,107540.0,107530.0,0.5095348]
[1748532584183,1.18564427,107540.0,107530.0,0.5095348]
[1748532585066,1.18564427,107540.0,107530.0,0.4938348]
[1748532585612,1.18564427,107540.0,107530.0,0.1085948]
[1748532585835,1.18564427,107540.0,107530.0,0.4938348]
[1748532587393,1.1856462,107540.0,107530.0,0.4938348]
[1748532588163,0.54457486,107540.0,107530.0,0.5251348]
[1748532590320,1.17451577,107540.0,107530.0,0.5251348]
[1748532593516,1.18565296,107540.0,107530.0,0.5251348]
[1748532596107,1.18566296,107540.0,107530.0,0.5251348]
[1748532596352,1.18566296,107540.0,107530.0,0.4935548]
[1748532596882,1.18566296,107540.0,107530.0,0.5088548]
[1748532597815,1.18566296,107540.0,107530.0,0.5254548]
[1748532599223,0.55572205,107540.0,107530.0,0.5254548]
[1748532599439,1.18566296,107540.0,107530.0,0.5254548]
[1748532600497,1.18566296,107540.0,107530.0,0.5088548]
[1748532600723,1.20050476,107540.0,107530.0,0.5254548]
[1748532600991,1.18566296,107540.0,107530.0,0.5254548]
[1748532601666,0.55572205,107540.0,107530.0,0.5254548]
[1748532603279,0.36044536,107540.0,107530.0,0.5254548]
[1748532603484,0.55387345,107540.0,107530.0,0.5254548]
[1748532603618,0.56317179,107540.0,107530.0,0.5254548]
[1748532604494,0.55290794,107540.0,107530.0,0.5254548]
[1748532605247,0.35763126,107540.0,107530.0,0.5254548]
[1748532605478,0.00929826,107540.0,107530.0,0.5254548]
[1748532605759,0.03719424,107540.0,107530.0,0.5254548]
[1748532605996,0.22317155,107540.0,107530.0,0.5254548]
[1748532606213,0.22317155,107540.0,107530.0,0.8195548]
[1748532606435,0.21387329,107540.0,107530.0,0.8195548]
[1748532606654,0.20457486,107540.0,107530.0,0.5266348]
[1748532606861,0.20457486,107540.0,107530.0,0.8194748]
[1748532607277,0.19527617,107540.0,107530.0,0.8194748]
[1748532607494,0.19527617,107540.0,107530.0,0.1404948]
[1748532607710,0.19527617,107540.0,107530.0,0.5253748]
[1748532608369,0.19527617,107540.0,107530.0,0.18609395]
[1748532608370,1.16521708,107540.0,107530.0,0.18609395]
[1748532608594,1.19136427,107540.0,107530.0,0.18609395]
[1748532608811,1.19136427,107540.0,107530.0,0.47889395]
[1748532609028,1.20620607,107540.0,107530.0,0.4934348]
[1748532609509,1.20620607,107540.0,107530.0,0.47889395]
[1748532609721,1.20620607,107540.0,107530.0,0.4934348]
[1748532610395,1.19120607,107540.0,107530.0,0.4934348]
[1748532610623,1.17636427,107540.0,107530.0,0.4934348]
[1748532610833,1.17636427,107540.0,107530.0,0.5092348]
[1748532611270,1.1763626,107540.0,107530.0,0.5092348]
[1748532611492,0.54642169,107540.0,107530.0,0.5243348]
[1748532612158,0.52597731,107540.0,107530.0,0.5243348]
[1748532612369,0.18597731,107540.0,107530.0,0.5243348]
[1748532613265,0.2138732,107540.0,107530.0,0.5243348]
[1748532613482,0.02789589,107540.0,107530.0,0.5243348]
[1748532613695,0.20457477,107540.0,107530.0,0.5243348]
[1748532615015,0.02789598,107540.0,107530.0,0.5243348]
[1748532615228,0.21387329,107540.0,107530.0,0.5243348]
[1748532616748,0.01859712,107540.0,107530.0,0.5243348]
[1748532616969,0.20457443,107540.0,107530.0,0.5243348]
[1748532621464,0.21387329,107540.0,107530.0,0.5242548]
[1748532622544,0.01859712,107540.0,107530.0,0.5242548]
[1748532622759,0.02789589,107540.0,107530.0,0.5242548]
[1748532622970,0.2138732,107540.0,107530.0,0.5242548]